fUST/lending_fUST_20250916
["ID","MTS","AMOUNT","RATE_DAILY","PERIOD"]
[385760692,1758022253158,-602.3775,0.00022191,3]
[385760693,1758022253168,-480.0,0.00022191,3]
[385760694,1758022253178,-480.0,0.00022191,3]
[385760695,1758022253267,-480.0,0.00022191,3]
[385760696,1758022253276,-480.0,0.00022191,3]
[385760697,1758022253285,-480.0,0.00022191,3]
[385760698,1758022253295,-480.0,0.00022191,3]
[385760699,1758022253304,-480.0,0.00022191,3]
[385760700,1758022253313,-480.0,0.00022191,3]
[385760701,1758022253322,-480.0,0.00022191,3]
[385760702,1758022253332,-480.0,0.00022191,3]
[385760703,1758022253341,-786.07,0.00022191,3]
[385760704,1758022253349,-478.36916472,0.00022191,3]
[385760705,1758022253358,-480.0,0.00022191,3]
[385760706,1758022253367,-480.0,0.00022191,3]
[385760707,1758022253377,-2365.84,0.00022191,3]
[385760708,1758022253386,-480.0,0.00022191,3]
[385760709,1758022253395,-480.0,0.00022191,3]
[385760710,1758022253405,-4106.22,0.000222,7]
[385760711,1758022253414,-172.0,0.00022214,2]
[385760712,1758022253426,-1000.0,0.00022221,2]
[385760713,1758022253435,-1000.0,0.00022221,2]
[385760714,1758022253443,-1000.0,0.00022221,2]
[385760715,1758022253452,-500.0,0.00022221,2]
[385760716,1758022253461,-501.15776765,0.00022221,2]
[385760717,1758022253472,-667.86066219,0.00022221,2]
[385760718,1758022253481,-1000.0,0.00022221,2]
[385760719,1758022253490,-1000.0,0.00022221,2]
[385760720,1758022253499,-5000.0,0.00022242,2]
[385760721,1758022253509,-168.0,0.0002228,2]
[385760722,1758022253518,-172.0,0.00022282,2]
[385760723,1758022253528,-151.0,0.000223,6]
[385760724,1758022253538,-151.0,0.00022313,2]
[385760725,1758022253548,-198.0,0.00022313,2]
[385760726,1758022253558,-500.0,0.00022346,5]
[385760727,1758022253567,-1000.0,0.000224,2]
[385760728,1758022253577,-250.0,0.00022442,2]
[385760729,1758022253588,-250.0,0.00022442,2]
[385760730,1758022253597,-209.322,0.00022442,2]
[385760731,1758022253606,-225.441,0.00022442,2]
[385760732,1758022253615,-250.0,0.00022442,2]
[385760733,1758022253625,-262.533,0.00022442,2]
[385760734,1758022253634,-294.0,0.00022442,2]
[385760735,1758022253643,-292.315,0.00022442,2]
[385760736,1758022253651,-302.32510116,0.00022465,3]
[385760737,1758022253660,-463.510681,0.00022465,3]
[385760738,1758022253670,-480.0,0.00022465,3]
[385760739,1758022253680,-486.24518879,0.00022465,3]
[385760740,1758022253689,-480.0,0.00022465,3]
[385760741,1758022253699,-480.0,0.00022465,3]
[385760742,1758022253709,-480.0,0.00022465,3]
[385760743,1758022253718,-480.0,0.00022465,3]
[385760744,1758022253728,-488.20643281,0.00022465,3]
[385760745,1758022253737,-480.0,0.00022465,3]
[385760746,1758022253747,-480.0,0.00022465,3]
[385760747,1758022253757,-480.0,0.00022465,3]
[385760748,1758022253766,-480.0,0.00022465,3]
[385760749,1758022253775,-480.0,0.00022465,3]
[385760750,1758022253784,-480.0,0.00022465,3]
[385760751,1758022253793,-480.0,0.00022465,3]
[385760752,1758022253802,-480.0,0.00022465,3]
[385760753,1758022253811,-480.0,0.00022465,3]
[385760754,1758022253820,-581.38740821,0.00022465,3]
[385760755,1758022253830,-480.0,0.00022465,3]
[385760756,1758022253839,-593.49875434,0.00022465,3]
[385760757,1758022253848,-480.0,0.00022465,3]
[385760758,1758022253857,-480.0,0.00022465,3]
[385760759,1758022253866,-519.76,0.00022465,3]
[385760760,1758022253875,-409.46092693,0.00022465,3]
[385760761,1758022253884,-480.0,0.00022465,3]
[385760762,1758022253893,-555.18899068,0.00022465,3]
[385760763,1758022253904,-480.0,0.00022465,3]
[385760764,1758022253912,-302.04358483,0.00022465,3]
[385760765,1758022253921,-480.0,0.00022465,3]
[385760766,1758022253930,-480.0,0.00022465,3]
[385760767,1758022253939,-480.0,0.00022465,3]
[385760768,1758022253949,-480.0,0.00022465,3]
[385760769,1758022253958,-480.0,0.00022465,3]
[385760770,1758022253968,-222.3105646,0.00022465,3]
[385760771,1758022253978,-480.0,0.00022465,3]
[385760772,1758022253988,-480.0,0.00022465,3]
[385760773,1758022253997,-480.0,0.00022465,3]
[385760774,1758022254007,-480.0,0.00022465,3]
[385760775,1758022254016,-480.0,0.00022465,3]
[385760776,1758022254025,-480.0,0.00022465,3]
[385760777,1758022254034,-480.0,0.00022465,3]
[385760778,1758022254043,-480.0,0.00022465,3]
[385760779,1758022254052,-480.0,0.00022465,3]
[385760780,1758022254061,-480.0,0.00022465,3]
[385760781,1758022254070,-480.0,0.00022465,3]
[385760782,1758022254079,-480.0,0.00022465,3]
[385760783,1758022254088,-480.0,0.00022465,3]
[385760784,1758022254097,-480.0,0.00022465,3]
[385760785,1758022254106,-480.0,0.00022465,3]
[385760786,1758022254115,-480.0,0.00022465,3]
[385760787,1758022254124,-480.0,0.00022465,3]
[385760788,1758022254133,-480.0,0.00022465,3]
[385760789,1758022254142,-221.392579,0.00022465,7]
[385760790,1758022254151,-480.0,0.00022465,3]
[385760791,1758022254160,-480.0,0.00022465,3]
[385760792,1758022254169,-480.0,0.00022465,3]
[385760793,1758022254179,-480.0,0.00022465,3]
[385760794,1758022254188,-480.0,0.00022465,3]
[385760795,1758022254197,-480.0,0.00022465,3]
[385760796,1758022254206,-165.69593589,0.00022465,3]
[385760797,1758022254214,-480.0,0.00022465,3]
[385760798,1758022254223,-480.0,0.00022465,3]
[385760799,1758022254232,-480.0,0.00022465,3]
[385760800,1758022254241,-480.0,0.00022465,3]
[385760801,1758022254250,-480.0,0.00022465,3]
[385760802,1758022254260,-480.0,0.00022465,3]
[385760803,1758022254268,-151.0,0.00022465,7]
[385760804,1758022254278,-692.04,0.00022465,3]
[385760805,1758022254287,-480.0,0.00022465,3]
[385760806,1758022254296,-480.0,0.00022465,3]
[385760807,1758022254305,-480.0,0.00022465,3]
[385760808,1758022254314,-480.0,0.00022465,3]
[385760809,1758022254323,-480.0,0.00022465,3]
[385760810,1758022254332,-487.31685101,0.00022465,3]
[385760811,1758022254341,-480.0,0.00022465,3]
[385760812,1758022254350,-480.0,0.00022465,3]
[385760813,1758022254359,-480.0,0.00022465,3]
[385760814,1758022254368,-480.0,0.00022465,3]
[385760815,1758022254378,-620.46137425,0.00022465,3]
[385760816,1758022254387,-477.19313585,0.00022465,3]
[385760817,1758022254396,-480.0,0.00022465,3]
[385760818,1758022254405,-341.22419174,0.00022465,3]
[385760819,1758022254414,-480.0,0.00022465,3]
[385760820,1758022254424,-462.23762747,0.00022465,3]
[385760821,1758022254434,-480.0,0.00022465,3]
[385760822,1758022254442,-480.0,0.00022465,3]
[385760823,1758022254452,-331.94869223,0.00022465,3]
[385760824,1758022254461,-490.58981072,0.00022465,3]
[385760825,1758022254470,-480.0,0.00022465,3]
[385760826,1758022254479,-480.0,0.00022465,3]
[385760827,1758022254488,-480.0,0.00022465,3]
[385760828,1758022254501,-480.0,0.00022465,3]
[385760829,1758022254510,-480.0,0.00022465,3]
[385760830,1758022254519,-480.0,0.00022465,3]
[385760831,1758022254528,-480.0,0.00022465,3]
[385760832,1758022254536,-480.0,0.00022465,3]
[385760833,1758022254545,-480.0,0.00022465,3]
[385760834,1758022254554,-480.0,0.00022465,3]
[385760835,1758022254563,-480.0,0.00022465,3]
[385760836,1758022254573,-480.0,0.00022465,3]
[385760837,1758022254583,-5000.29,0.00022465,3]
[385760838,1758022254592,-480.0,0.00022465,3]
[385760839,1758022254602,-480.0,0.00022465,3]
[385760840,1758022254611,-2083.27,0.00022465,3]
[385760841,1758022254621,-480.0,0.00022465,3]
[385760842,1758022254630,-1738.71,0.00022465,3]
[385760843,1758022254639,-480.0,0.00022465,3]
[385760844,1758022254648,-480.0,0.00022465,3]
[385760845,1758022254658,-480.0,0.00022465,3]
[385760846,1758022254667,-480.0,0.00022465,3]
[385760847,1758022254676,-2566.21,0.00022465,3]
[385760848,1758022254686,-480.0,0.00022465,3]
[385760849,1758022254695,-782.0,0.00022465,3]
[385760850,1758022254704,-480.0,0.00022465,3]
[385760851,1758022254714,-572.63,0.00022465,3]
[385760852,1758022254724,-480.0,0.00022465,3]
[385760853,1758022254733,-480.0,0.00022465,3]
[385760854,1758022254742,-480.0,0.00022465,3]
[385760855,1758022254751,-480.0,0.00022465,3]
[385760856,1758022254831,-480.0,0.00022465,3]
[385760857,1758022254840,-525.05,0.00022465,3]
[385760858,1758022254849,-480.0,0.00022465,3]
[385760859,1758022254858,-1748.53,0.00022465,3]
[385760860,1758022254867,-481.79524283,0.00022465,3]
[385760861,1758022254877,-480.0,0.00022465,3]
[385760862,1758022254886,-481.62278203,0.00022465,3]
[385760863,1758022254895,-480.0,0.00022465,3]
[385760864,1758022254905,-480.0,0.00022465,3]
[385760865,1758022254915,-480.0,0.00022465,3]
[385760866,1758022254924,-480.0,0.00022465,3]
[385760867,1758022254933,-480.0,0.00022465,3]
[385760868,1758022254942,-480.0,0.00022465,3]
[385760869,1758022254952,-480.0,0.00022465,3]
[385760870,1758022254961,-1117.15,0.00022465,3]
[385760871,1758022254970,-615.18,0.00022465,3]
[385760872,1758022254979,-480.0,0.00022465,3]
[385760873,1758022254987,-480.0,0.00022465,3]
[385760874,1758022254996,-959.69,0.00022465,3]
[385760875,1758022255006,-480.0,0.00022465,3]
[385760876,1758022255015,-480.0,0.00022465,3]
[385760877,1758022255024,-480.0,0.00022465,3]
[385760878,1758022255034,-480.0,0.00022465,3]
[385760879,1758022255043,-480.0,0.00022465,3]
[385760880,1758022255052,-2394.54,0.00022465,3]
[385760881,1758022255061,-480.0,0.00022465,3]
[385760882,1758022255070,-480.0,0.00022465,3]
[385760883,1758022255081,-480.0,0.00022465,3]
[385760884,1758022255092,-480.0,0.00022465,3]
[385760885,1758022255101,-480.0,0.00022465,3]
[385760886,1758022255110,-480.0,0.00022465,3]
[385760887,1758022255119,-480.0,0.00022465,3]
[385760888,1758022255128,-223.08,0.00022465,3]
[385760889,1758022255137,-480.0,0.00022465,3]
[385760890,1758022255149,-389.88,0.00022465,3]
[385760891,1758022255158,-1011.97,0.00022465,3]
[385760892,1758022255167,-480.0,0.00022465,3]
[385760893,1758022255177,-480.0,0.00022465,3]
[385760894,1758022255186,-480.0,0.00022465,3]
[385760895,1758022255196,-480.0,0.00022465,3]
[385760896,1758022255205,-480.0,0.00022465,3]
[385760897,1758022255214,-480.0,0.00022465,3]
[385760898,1758022255224,-480.0,0.00022465,3]
[385760899,1758022255233,-553.5,0.00022465,3]
[385760900,1758022255243,-480.0,0.00022465,3]
[385760901,1758022255252,-242.9,0.00022465,2]
[385760902,1758022255261,-480.0,0.00022465,3]
[385760903,1758022255270,-480.0,0.00022465,3]
[385760904,1758022255279,-480.0,0.00022465,3]
[385760905,1758022255289,-480.0,0.00022465,3]
[385760906,1758022255299,-480.0,0.00022465,3]
[385760907,1758022255308,-480.0,0.00022465,3]
[385760908,1758022255317,-480.0,0.00022465,3]
[385760909,1758022255326,-480.0,0.00022465,3]
[385760910,1758022255335,-10106.71,0.00022465,3]
[385760911,1758022255344,-480.0,0.00022465,3]
[385760912,1758022255354,-480.0,0.00022465,3]
[385760913,1758022255363,-480.0,0.00022465,3]
[385760914,1758022255373,-725.12,0.00022465,3]
[385760915,1758022255382,-480.0,0.00022465,3]
[385760916,1758022255391,-480.0,0.00022465,3]
[385760917,1758022255400,-480.0,0.00022465,3]
[385760918,1758022255409,-159.03,0.00022465,3]
[385760919,1758022255419,-480.0,0.00022465,3]
[385760920,1758022255429,-480.0,0.00022465,3]
[385760921,1758022255441,-480.0,0.00022465,3]
[385760922,1758022255450,-480.0,0.00022465,3]
[385760923,1758022255460,-480.0,0.00022465,3]
[385760924,1758022255470,-480.0,0.00022465,3]
[385760925,1758022255479,-504.22,0.00022465,3]
[385760926,1758022255488,-1154.29,0.00022465,3]
[385760927,1758022255497,-480.88721694,0.00022465,3]
[385760928,1758022255507,-480.0,0.00022465,3]
[385760929,1758022255517,-480.97665309,0.00022465,3]
[385760930,1758022255527,-480.0,0.00022465,3]
[385760931,1758022255536,-342.86,0.00022465,3]
[385760932,1758022255546,-758.06,0.00022465,3]
[385760933,1758022255555,-480.0,0.00022465,3]
[385760934,1758022255565,-480.0,0.00022465,3]
[385760935,1758022255575,-480.0,0.00022465,3]
[385760936,1758022255584,-460.09152444,0.00022465,3]
[385760937,1758022255593,-480.0,0.00022465,3]
[385760938,1758022255603,-480.0,0.00022465,3]
[385760939,1758022255612,-480.0,0.00022465,3]
[385760940,1758022255622,-480.0,0.00022465,3]
[385760941,1758022255630,-480.0,0.00022465,3]
[385760942,1758022255639,-170.28871893,0.00022465,3]
[385760943,1758022255648,-480.0,0.00022465,3]
[385760944,1758022255657,-480.0,0.00022465,3]
[385760945,1758022255667,-480.0,0.00022465,3]
[385760946,1758022255677,-480.0,0.00022465,3]
[385760947,1758022255686,-480.0,0.00022465,3]
[385760948,1758022255696,-786.07,0.00022465,3]
[385760949,1758022255705,-480.0,0.00022465,3]
[385760950,1758022255715,-2365.84,0.00022465,3]
[385760951,1758022255724,-480.0,0.00022465,3]
[385760952,1758022255734,-500.0,0.00022473,2]
[385760953,1758022255743,-618.82281971,0.00022473,2]
[385760954,1758022255752,-150.0,0.00022473,2]
[385760955,1758022255761,-500.0,0.00022473,2]
[385760956,1758022255770,-500.0,0.00022473,2]
[385760957,1758022255779,-150.0,0.00022473,2]
[385760958,1758022255788,-598.63780128,0.00022473,2]
[385760959,1758022255797,-501.29486521,0.00022473,2]
[385760960,1758022255806,-160.78383503,0.00022473,2]
[385760961,1758022255816,-151.0,0.000225,9]
[385760962,1758022255825,-1000.0,0.00022521,2]
[385760963,1758022255833,-172.0,0.0002253,2]
[385760964,1758022255843,-172.5,0.00022568,2]
[385760965,1758022255852,-151.0,0.00022587,2]
[385760966,1758022255861,-1000.0,0.000226,2]
[385760967,1758022255870,-151.0,0.000226,7]
[385760968,1758022255880,-151.0,0.000226,6]
[385760969,1758022255889,-174.066,0.00022603,2]
[385760970,1758022255899,-160.0,0.0002261,2]
[385760971,1758022255908,-151.0,0.000227,8]
[385760972,1758022255918,-508.93493663,0.00022721,2]
[385760973,1758022255928,-1000.0,0.00022721,2]
[385760974,1758022255937,-1000.0,0.00022721,2]
[385760975,1758022255946,-1000.0,0.00022721,2]
[385760976,1758022255955,-1001.47837506,0.00022721,2]
[385760977,1758022255964,-500.0,0.00022721,2]
[385760978,1758022255973,-1000.0,0.00022721,2]
[385760979,1758022255982,-200.82010165,0.00022721,2]
[385760980,1758022255991,-502.08287291,0.00022721,2]
[385760981,1758022256000,-1000.0,0.00022721,2]
[385760982,1758022256011,-1004.74651727,0.00022721,2]
[385760983,1758022256020,-1002.61062955,0.00022721,2]
[385760984,1758022256030,-1000.0,0.00022721,2]
[385760985,1758022256039,-1000.0,0.00022721,2]
[385760986,1758022256048,-1000.0,0.00022721,2]
[385760987,1758022256057,-1000.0,0.00022721,2]
[385760988,1758022256067,-502.53041432,0.00022721,2]
[385760989,1758022256075,-151.0,0.00022721,7]
[385760990,1758022256084,-480.0,0.00022739,3]
[385760991,1758022256093,-480.0,0.00022739,3]
[385760992,1758022256103,-480.0,0.00022739,3]
[385760993,1758022256112,-480.0,0.00022739,3]
[385760994,1758022256121,-480.0,0.00022739,3]
[385760995,1758022256130,-410.79806037,0.00022739,3]
[385760996,1758022256140,-480.0,0.00022739,3]
[385760997,1758022256150,-507.28029165,0.00022739,3]
[385760998,1758022256159,-480.0,0.00022739,3]
[385760999,1758022256169,-519.76,0.00022739,3]
[385761000,1758022256179,-480.0,0.00022739,3]
[385761001,1758022256188,-480.0,0.00022739,3]
[385761002,1758022256197,-480.0,0.00022739,3]
[385761003,1758022256266,-480.0,0.00022739,3]
[385761004,1758022256284,-480.0,0.00022739,3]
[385761005,1758022256293,-480.0,0.00022739,3]
[385761006,1758022256303,-442.72811461,0.00022739,3]
[385761007,1758022256313,-480.0,0.00022739,3]
[385761008,1758022256324,-480.0,0.00022739,3]
[385761009,1758022256335,-480.0,0.00022739,3]
[385761010,1758022256343,-480.0,0.00022739,3]
[385761011,1758022256353,-480.0,0.00022739,3]
[385761012,1758022256362,-480.0,0.00022739,3]
[385761013,1758022256371,-480.0,0.00022739,3]
[385761014,1758022256380,-480.0,0.00022739,3]
[385761015,1758022256390,-186.38,0.00022739,3]
[385761016,1758022256401,-480.0,0.00022739,3]
[385761017,1758022256416,-480.0,0.00022739,3]
[385761018,1758022256426,-480.0,0.00022739,3]
[385761019,1758022256437,-480.0,0.00022739,3]
[385761020,1758022256449,-480.0,0.00022739,3]
[385761021,1758022256459,-480.0,0.00022739,3]
[385761022,1758022256469,-480.0,0.00022739,3]
[385761023,1758022256479,-480.0,0.00022739,3]
[385761024,1758022256489,-480.0,0.00022739,3]
[385761025,1758022256497,-480.0,0.00022739,3]
[385761026,1758022256507,-499.71,0.00022739,3]
[385761027,1758022256520,-480.0,0.00022739,3]
[385761028,1758022256530,-480.0,0.00022739,3]
[385761029,1758022256540,-480.0,0.00022739,3]
[385761030,1758022256549,-692.04,0.00022739,3]
[385761031,1758022256558,-535.01560656,0.00022739,3]
[385761032,1758022256567,-480.0,0.00022739,3]
[385761033,1758022256576,-480.0,0.00022739,3]
[385761034,1758022256586,-480.0,0.00022739,3]
[385761035,1758022256595,-480.0,0.00022739,3]
[385761036,1758022256605,-480.0,0.00022739,3]
[385761037,1758022256614,-480.0,0.00022739,3]
[385761038,1758022256629,-150.71161797,0.00022739,3]
[385761039,1758022256640,-200.471635,0.00022739,7]
[385761040,1758022256650,-479.31,0.00022739,3]
[385761041,1758022256660,-154.907835,0.00022739,7]
[385761042,1758022256670,-480.0,0.00022739,3]
[385761043,1758022256679,-480.0,0.00022739,3]
[385761044,1758022256689,-480.0,0.00022739,3]
[385761045,1758022256698,-599.34,0.00022739,3]
[385761046,1758022256707,-205.42497926,0.00022739,3]
[385761047,1758022256717,-151.0,0.00022739,7]
[385761048,1758022256726,-480.0,0.00022739,3]
[385761049,1758022256735,-480.0,0.00022739,3]
[385761050,1758022256744,-480.0,0.00022739,3]
[385761051,1758022256753,-480.0,0.00022739,3]
[385761052,1758022256763,-480.0,0.00022739,3]
[385761053,1758022256772,-5000.29,0.00022739,3]
[385761054,1758022256782,-480.0,0.00022739,3]
[385761055,1758022256791,-2083.27,0.00022739,3]
[385761056,1758022256800,-480.0,0.00022739,3]
[385761057,1758022256809,-1738.71,0.00022739,3]
[385761058,1758022256819,-480.0,0.00022739,3]
[385761059,1758022256828,-366.21,0.00022739,3]
[385761060,1758022256837,-480.0,0.00022739,3]
[385761061,1758022256846,-2566.21,0.00022739,3]
[385761062,1758022256855,-782.0,0.00022739,3]
[385761063,1758022256864,-480.0,0.00022739,3]
[385761064,1758022256874,-572.63,0.00022739,3]
[385761065,1758022256883,-480.0,0.00022739,3]
[385761066,1758022256892,-480.0,0.00022739,3]
[385761067,1758022256901,-236.30312452,0.00022739,3]
[385761068,1758022256910,-525.05,0.00022739,3]
[385761069,1758022256920,-1748.53,0.00022739,3]
[385761070,1758022256930,-480.0,0.00022739,3]
[385761071,1758022256940,-480.0,0.00022739,3]
[385761072,1758022256949,-480.0,0.00022739,3]
[385761073,1758022256958,-480.0,0.00022739,3]
[385761074,1758022256968,-480.0,0.00022739,3]
[385761075,1758022256977,-480.0,0.00022739,3]
[385761076,1758022256987,-480.0,0.00022739,3]
[385761077,1758022256996,-480.0,0.00022739,3]
[385761078,1758022257006,-1117.15,0.00022739,3]
[385761079,1758022257015,-615.18,0.00022739,3]
[385761080,1758022257024,-480.0,0.00022739,3]
[385761081,1758022257034,-959.69,0.00022739,3]
[385761082,1758022257043,-480.0,0.00022739,3]
[385761083,1758022257052,-480.0,0.00022739,3]
[385761084,1758022257061,-480.0,0.00022739,3]
[385761085,1758022257070,-2394.54,0.00022739,3]
[385761086,1758022257079,-480.0,0.00022739,3]
[385761087,1758022257089,-412.41593061,0.00022739,3]
[385761088,1758022257098,-480.0,0.00022739,3]
[385761089,1758022257107,-480.0,0.00022739,3]
[385761090,1758022257116,-480.0,0.00022739,3]
[385761091,1758022257126,-1011.97,0.00022739,3]
[385761092,1758022257135,-480.0,0.00022739,3]
[385761093,1758022257144,-480.0,0.00022739,3]
[385761094,1758022257153,-156.74,0.00022739,3]
[385761095,1758022257162,-480.0,0.00022739,3]
[385761096,1758022257171,-553.5,0.00022739,3]
[385761097,1758022257180,-480.0,0.00022739,3]
[385761098,1758022257190,-480.0,0.00022739,3]
[385761099,1758022257199,-480.0,0.00022739,3]
[385761100,1758022257208,-534.35031365,0.00022739,3]
[385761101,1758022257217,-480.0,0.00022739,3]
[385761102,1758022257227,-445.85,0.00022739,3]
[385761103,1758022257236,-480.0,0.00022739,3]
[385761104,1758022257246,-10106.71,0.00022739,3]
[385761105,1758022257255,-480.0,0.00022739,3]
[385761106,1758022257264,-480.0,0.00022739,3]
[385761107,1758022257273,-725.12,0.00022739,3]
[385761108,1758022257283,-480.0,0.00022739,3]
[385761109,1758022257292,-480.0,0.00022739,3]
[385761110,1758022257301,-480.0,0.00022739,3]
[385761111,1758022257310,-480.0,0.00022739,3]
[385761112,1758022257319,-480.0,0.00022739,3]
[385761113,1758022257328,-480.0,0.00022739,3]
[385761114,1758022257337,-480.0,0.00022739,3]
[385761115,1758022257347,-480.0,0.00022739,3]
[385761116,1758022257356,-504.22,0.00022739,3]
[385761117,1758022257365,-1154.29,0.00022739,3]
[385761118,1758022257375,-480.0,0.00022739,3]
[385761119,1758022257384,-758.06,0.00022739,3]
[385761120,1758022257393,-480.0,0.00022739,3]
[385761121,1758022257402,-480.0,0.00022739,3]
[385761122,1758022257411,-480.0,0.00022739,3]
[385761123,1758022257420,-480.0,0.00022739,3]
[385761124,1758022257430,-480.0,0.00022739,3]
[385761125,1758022257441,-480.0,0.00022739,3]
[385761126,1758022257450,-480.0,0.00022739,3]
[385761127,1758022257459,-480.0,0.00022739,3]
[385761128,1758022257468,-480.0,0.00022739,3]
[385761129,1758022257478,-786.07,0.00022739,3]
[385761130,1758022257489,-2365.84,0.00022739,3]
[385761131,1758022257498,-1500.0,0.00022768,2]
[385761132,1758022257507,-1500.0,0.00022768,2]
[385761133,1758022257517,-1000.0,0.00022768,2]
[385761134,1758022257527,-1500.0,0.00022768,2]
[385761135,1758022257536,-1297.05041395,0.0002278,2]
[385761136,1758022257545,-61435.62,0.000228,7]
[385761137,1758022257555,-151.0,0.000228,6]
[385761138,1758022257564,-160.0,0.000228,7]
[385761139,1758022257573,-417.15472785,0.000228,7]
[385761140,1758022257649,-151.0,0.00022861,2]
[385761141,1758022257658,-500.0,0.00022895,2]
[385761142,1758022257668,-6723.55331944,0.00022928,2]
[385761143,1758022257678,-172.0,0.00022931,2]
[385761144,1758022257687,-336.3,0.00022975,3]
[385761145,1758022257697,-172.0,0.00022989,2]
[385761146,1758022257707,-168.0,0.00022995,2]
[385761147,1758022257716,-160.0,0.00023,3]
[385761148,1758022257726,-160.0,0.00023,3]
[385761149,1758022257736,-1474.44820705,0.00023,2]
[385761150,1758022257746,-160.0,0.00023,3]
[385761151,1758022257755,-160.0,0.00023,2]
[385761152,1758022257765,-151.0,0.00023,5]
[385761153,1758022257774,-217.86301978,0.00023,3]
[385761154,1758022257783,-233.29513139,0.00023,3]
[385761155,1758022257793,-847.61663983,0.00023,3]
[385761156,1758022257802,-531.43424302,0.00023,3]
[385761157,1758022257812,-480.0,0.00023013,3]
[385761158,1758022257823,-480.0,0.00023013,3]
[385761159,1758022257832,-480.0,0.00023013,3]
[385761160,1758022257843,-480.0,0.00023013,3]
[385761161,1758022257853,-519.76,0.00023013,3]
[385761162,1758022257863,-480.0,0.00023013,3]
[385761163,1758022257872,-480.0,0.00023013,3]
[385761164,1758022257882,-480.0,0.00023013,3]
[385761165,1758022257892,-480.0,0.00023013,3]
[385761166,1758022257901,-480.0,0.00023013,3]
[385761167,1758022257910,-480.0,0.00023013,3]
[385761168,1758022257919,-623.5490818,0.00023013,3]
[385761169,1758022257930,-480.0,0.00023013,3]
[385761170,1758022257939,-480.0,0.00023013,3]
[385761171,1758022257948,-480.0,0.00023013,3]
[385761172,1758022257957,-436.13,0.00023013,3]
[385761173,1758022257966,-355.47394858,0.00023013,3]
[385761174,1758022257975,-480.0,0.00023013,3]
[385761175,1758022257985,-480.0,0.00023013,3]
[385761176,1758022257993,-480.0,0.00023013,3]
[385761177,1758022258003,-480.0,0.00023013,3]
[385761178,1758022258012,-485.34,0.00023013,3]
[385761179,1758022258021,-692.04,0.00023013,3]
[385761180,1758022258030,-480.0,0.00023013,3]
[385761181,1758022258040,-279.04,0.00023013,3]
[385761182,1758022258049,-189.69960036,0.00023013,3]
[385761183,1758022258059,-480.0,0.00023013,3]
[385761184,1758022258068,-451.1,0.00023013,3]
[385761185,1758022258078,-557.1,0.00023013,3]
[385761186,1758022258087,-480.0,0.00023013,3]
[385761187,1758022258096,-498.12,0.00023013,3]
[385761188,1758022258105,-613.96,0.00023013,3]
[385761189,1758022258115,-5000.29,0.00023013,3]
[385761190,1758022258125,-480.0,0.00023013,3]
[385761191,1758022258134,-2083.27,0.00023013,3]